bitfinex-derivatives/quotes_SOLF0:USTF0_20240926
["timestamp","ask_amount","ask_price","bid_price","bid_amount"]
[1727370107078,15.3,156.91,156.83,1.3595]
[1727370107380,3.1864,156.89,156.85,3.1872]
[1727370107578,15.3,156.91,156.85,3.1872]
[1727370108077,3.1867,156.88,156.83,1.3595]
[1727370108478,3.1869,156.87,156.83,1.3595]
[1727370109480,15.3,156.87,156.81,1.3679]
[1727370110177,3.1871,156.86,156.81,1.3679]
[1727370110379,3.1871,156.86,156.81,4.5557]
[1727370110686,3.1871,156.86,156.81,1.3679]
[1727370111280,3.1869,156.87,156.81,1.3679]
[1727370111681,15.3,156.89,156.81,1.3679]
[1727370112279,3.1872,156.86,156.82,3.1877]
[1727370113886,3.1872,156.86,156.83,3.1876]
[1727370114883,3.1869,156.87,156.83,3.1876]
[1727370115086,3.1869,156.87,156.84,3.1874]
[1727370115488,3.1864,156.89,156.82,15.3]
[1727370115686,15.3,156.91,156.82,15.3]
[1727370116284,19.12,156.99,156.82,15.3]
[1727370116285,15.3,156.93,156.82,15.3]
[1727370116689,15.3,156.93,156.84,15.3]
[1727370116894,15.3,156.95,156.86,15.3]
[1727370117186,19.12,157.02,156.86,15.3]
[1727370117187,15.3,156.97,156.86,15.3]
[1727370117391,3.1853,156.95,156.91,3.1859]
[1727370117587,3.1853,156.95,156.88,4.52701198]
[1727370117787,3.1853,156.95,156.88,19.82701198]
[1727370118692,15.3,156.97,156.88,19.82701198]
[1727370119095,3.1856,156.94,156.88,19.82701198]
[1727370119485,3.1863,156.9,156.88,1.3427]
[1727370119691,15.3,156.93,156.88,1.3427]
[1727370119889,15.3,156.93,156.85,1.3259]
[1727370120090,15.3,156.93,156.87,3.1867]
[1727370120497,15.3,156.91,156.85,1.3259]
[1727370120693,3.1866,156.89,156.86,3.1869]
[1727370120889,15.3,156.91,156.85,1.3259]
[1727370121092,15.3,156.93,156.85,1.3259]
[1727370121996,18.4858,156.93,156.89,3.1862]
[1727370122387,3.1858,156.92,156.89,3.1862]
[1727370122591,25.4882,157.01,156.87,3.15608888]
[1727370122592,15.3,156.95,156.87,3.15608888]
[1727370122892,15.3,156.95,156.88,4.47006902]
[1727370123490,15.3,157.0,156.89,15.3]
[1727370123697,15.3,157.01,156.91,15.3]
[1727370123998,15.3,157.01,156.88,4.47006902]
[1727370123999,15.3,156.99,156.92,1.3447]
[1727370124394,3.1848,156.97,156.93,3.1856]
[1727370124796,3.26413918,157.02,156.92,1.3447]
[1727370124797,24.48,157.01,156.92,1.3447]
[1727370125001,3.1847,156.98,156.94,3.1854]
[1727370125194,24.48,157.01,156.92,1.3447]
[1727370125599,3.1849,156.97,156.93,3.1855]
[1727370126395,3.1847,156.98,156.95,3.1852]
[1727370126602,24.48,157.01,156.95,3.1852]
[1727370126898,3.1842,157.0,156.96,3.1848]
[1727370127099,3.1842,157.0,156.92,1.3447]
[1727370127496,3.1842,157.0,156.97,3.1848]
[1727370127700,3.184,157.01,156.93,24.48]
[1727370128001,24.48,157.06,156.97,3.1847]
[1727370128201,24.48,157.06,156.94,1.3191]
[1727370128407,24.48,157.03,156.94,1.3191]
[1727370128697,24.48,157.03,156.96,3.1849]
[1727370129301,24.48,157.03,156.97,3.1847]
[1727370129501,3.1843,157.0,156.97,3.1847]
[1727370129702,24.48,157.03,156.95,3.185]
[1727370129903,24.48,157.03,156.94,1.3191]
[1727370130098,24.48,157.01,156.92,1.3447]
[1727370130598,3.185,156.96,156.92,1.3447]
[1727370130793,24.48,157.01,156.93,3.1854]
[1727370130998,3.1856,156.94,156.92,1.3447]
[1727370131194,24.48,156.99,156.89,1.3191]
[1727370131395,24.48,157.01,156.89,2.5853]
[1727370131702,25.4857,157.07,156.91,24.48]
[1727370131703,24.48,157.03,156.91,24.48]
[1727370132306,3.1845,156.99,156.91,24.48]
[1727370133205,3.1846,156.98,156.95,3.1851]
[1727370133399,24.48,157.03,156.91,24.48]
[1727370133808,3.1843,157.0,156.97,3.1846]
[1727370134003,24.48,157.06,156.93,24.48]
[1727370134397,3.1841,157.01,156.98,3.1845]
[1727370134600,24.48,157.06,156.93,24.48]
[1727370134909,24.48,157.08,156.96,24.48]
[1727370135107,3.1832,157.05,157.01,3.1838]
[1727370135306,3.1832,157.05,156.97,7.13395132]
[1727370135608,3.1835,157.04,157.0,3.1841]
[1727370135809,3.1835,157.04,156.97,7.13395132]
[1727370136010,3.1835,157.04,157.01,3.1838]
[1727370137111,3.1832,157.05,157.01,3.1838]
[1727370137410,24.48,157.08,157.01,3.1838]
[1727370137607,24.48,157.08,157.0,3.1841]
[1727370137808,3.1835,157.04,156.97,7.13395132]
[1727370138512,70.63068442,157.09,156.97,7.13395132]
[1727370138513,3.1832,157.05,156.98,24.48]
[1727370138711,70.63068442,157.09,156.98,24.48]
[1727370139102,3.183,157.06,156.98,24.48]
[1727370139303,24.48,157.11,156.98,24.48]
[1727370139504,3.1827,157.08,157.01,24.48]
[1727370139916,24.48,157.13,157.01,24.48]
[1727370140513,24.48,157.13,157.07,3.1826]
[1727370140708,24.48,157.13,157.01,24.48]
[1727370141013,24.48,157.13,157.06,3.1829]
[1727370141313,24.48,157.13,157.01,24.48]
[1727370142014,24.48,157.11,156.98,24.48]
[1727370142416,24.48,157.13,157.0,24.48]
[1727370142616,3.1826,157.08,157.05,3.183]
[1727370143722,24.48,157.13,157.0,24.48]
[1727370143915,24.48,157.11,157.0,24.48]
[1727370144316,3.1827,157.08,157.04,3.1832]
[1727370144610,24.48,157.13,157.0,24.48]
[1727370144806,0.96634827,157.12,157.0,24.48]
[1727370145612,3.1827,157.08,157.05,3.183]
[1727370145821,3.1827,157.08,157.0,24.48]
[1727370145822,24.48,157.13,157.0,24.48]
[1727370146016,0.96678083,157.12,157.0,24.48]
[1727370146220,3.1829,157.07,157.04,3.1833]
[1727370148421,3.183,157.06,157.03,3.1835]
[1727370148615,15.28,157.08,156.99,15.28]
[1727370149021,3.1834,157.04,157.01,3.1839]
[1727370149427,15.28,157.06,156.97,22.41395132]
[1727370149622,3.184,157.01,156.97,22.41395132]
[1727370150021,15.28,157.06,156.97,22.41395132]
[1727370150222,3.1836,157.04,156.97,22.41395132]
[1727370150426,15.28,157.06,156.97,22.41395132]
[1727370150925,3.1834,157.04,157.01,3.1839]
[1727370153023,15.28,157.06,157.02,3.1838]
[1727370153928,3.1832,157.05,157.02,3.1838]
[1727370155025,15.28,157.06,156.97,22.41395132]
[1727370155026,3.1835,157.04,156.97,22.41395132]
[1727370155529,3.1835,157.04,157.01,3.1838]
[1727370155929,3.1835,157.04,156.97,22.41395132]
[1727370156524,3.1835,157.04,157.02,3.1837]
[1727370157434,3.1835,157.04,156.97,7.13395132]
[1727370157435,15.28,157.04,156.97,7.13395132]
[1727370158130,3.1838,157.02,156.97,7.13395132]
[1727370158928,3.1838,157.02,157.0,3.184]
[1727370159627,3.1836,157.03,157.01,3.184]
[1727370160035,3.1835,157.04,157.01,3.184]
[1727370161336,3.1833,157.05,157.02,3.1837]
[1727370161742,15.28,157.06,157.01,3.1839]
[1727370162242,3.1835,157.04,157.01,3.1839]
[1727370162947,3.1837,157.03,157.01,3.1839]
[1727370164547,3.1837,157.03,156.97,7.13395132]
[1727370164548,3.1833,157.05,157.02,3.1836]
[1727370164944,15.28,157.08,157.02,3.1836]
[1727370165146,15.28,157.08,157.03,3.1835]
[1727370165448,15.28,157.08,156.98,15.28]
[1727370165645,3.1833,157.05,156.98,15.28]
[1727370166350,15.28,157.08,156.98,15.28]
[1727370166948,3.1831,157.06,156.98,15.28]
[1727370167148,15.28,157.08,156.98,15.28]
[1727370167349,3.1832,157.05,156.98,15.28]
[1727370167549,15.28,157.08,156.98,15.28]
[1727370168239,3.1835,157.04,157.01,3.1839]
[1727370168745,3.1833,157.05,157.02,3.1837]
[1727370168943,15.28,157.08,156.98,15.28]
[1727370170150,3.1832,157.05,156.98,15.28]
[1727370170350,15.28,157.08,156.98,15.28]
[1727370170649,3.1835,157.04,157.01,3.1839]
[1727370171045,3.1835,157.04,156.98,15.28]
[1727370171849,3.1833,157.05,156.98,15.28]
[1727370173148,3.1833,157.05,157.02,3.1836]
[1727370173344,3.1833,157.05,156.98,15.28]
[1727370173747,3.1831,157.06,157.03,3.1835]
[1727370174151,15.28,157.08,157.03,3.1835]
[1727370174555,3.1833,157.05,157.03,3.1836]
[1727370175152,3.1829,157.07,157.04,3.1834]
[1727370175654,3.183,157.06,157.04,3.1834]
[1727370176252,3.1832,157.05,157.03,3.1835]
[1727370176654,3.1832,157.05,156.98,15.28]
[1727370176857,3.1834,157.04,157.02,3.1837]
[1727370177457,3.1832,157.05,157.02,3.1837]
[1727370177658,15.28,157.09,157.03,3.1836]
[1727370177954,15.28,157.09,157.01,15.28]
[1727370178160,15.28,157.11,157.04,3.1833]
[1727370178756,3.183,157.06,157.04,3.1833]
[1727370179755,3.1832,157.05,157.03,3.1835]
[1727370179954,3.1832,157.05,156.97,7.13395132]
[1727370179955,15.28,157.07,156.99,15.28]
[1727370180160,15.28,157.05,156.97,7.13395132]
[1727370180361,9.79,157.01,156.98,3.1846]
[1727370180758,9.79,157.0,156.97,2.6956]
[1727370181055,3.1070141,157.13,156.93,2.7287]
[1727370181056,9.79,156.99,156.93,2.7287]
[1727370181360,19.12,157.07,156.93,12.5187]
[1727370181559,9.79,156.98,156.93,12.5187]
[1727370181758,3.1846,156.99,156.94,9.79]
[1727370182155,3.1846,156.99,156.96,3.185]
[1727370182656,15.3,157.04,156.96,3.2208593]
[1727370182855,15.3,157.06,156.97,15.3]
[1727370183363,3.1837,157.03,157.0,3.1841]
[1727370183566,85.79293947,157.08,156.99,15.3]
[1727370183759,70.49293947,157.08,157.01,15.3]
[1727370183969,70.49293947,157.08,157.02,2.5653]
[1727370184562,3.1828,157.07,157.02,2.5653]
[1727370184857,15.3,157.12,157.03,15.3]
[1727370185768,15.3,157.14,157.04,16.6375]
[1727370185967,15.3,157.14,157.04,19.83624877]
[1727370186666,3.1824,157.1,157.06,3.1829]
[1727370187664,3.182,157.11,157.07,3.1828]
[1727370188765,3.1818,157.12,157.08,3.1826]
[1727370189166,3.1818,157.12,157.07,15.3]
[1727370189564,15.3,157.16,157.08,3.1826]
[1727370189868,15.3,157.16,157.07,15.3]
[1727370190070,15.3,157.16,157.09,3.1823]
[1727370190469,3.1817,157.13,157.09,3.1823]
[1727370191369,15.3,157.16,157.08,3.1825]
[1727370191960,3.1819,157.12,157.09,3.1823]
[1727370192360,3.1816,157.13,157.1,3.182]
[1727370192565,15.3,157.18,157.09,15.3]
[1727370192765,0.96599857,157.17,157.09,15.3]
[1727370193069,3.1815,157.14,157.11,3.1819]
[1727370194075,3.1816,157.13,157.1,3.1821]
[1727370194674,3.1816,157.13,157.11,3.1819]
[1727370194878,3.1814,157.14,157.11,3.1819]
[1727370195172,15.3,157.24,157.11,3.1819]
[1727370195173,19.12,157.25,157.14,3.1812]
[1727370195372,3.1804,157.19,157.13,15.3]
[1727370195879,3.1809,157.17,157.13,15.3]
[1727370196869,15.3,157.22,157.12,5.74631894]
[1727370196870,3.1809,157.16,157.12,2.5224]
[1727370197173,3.1809,157.16,157.12,5.7793387]
[1727370197573,3.1808,157.17,157.12,5.7793387]
[1727370197974,15.3,157.2,157.12,5.7793387]
[1727370198179,3.1811,157.16,157.13,3.1815]
[1727370198676,3.1808,157.17,157.14,3.1812]
[1727370199370,15.3,157.22,157.12,2.5224]
[1727370199575,96.04429758,157.26,157.12,2.5224]
[1727370199576,15.3,157.2,157.12,2.5224]
[1727370200076,15.3,157.22,157.12,2.5224]
[1727370200276,15.3,157.22,157.14,3.1813]
[1727370200476,15.3,157.22,157.13,15.3]
[1727370200671,3.1805,157.19,157.13,15.3]
[1727370201481,3.1806,157.18,157.15,15.3]
[1727370201688,3.1806,157.18,157.15,3.181]
[1727370201878,15.3,157.24,157.13,15.3]
[1727370202183,3.1804,157.19,157.16,3.1808]
[1727370203884,3.1802,157.2,157.15,15.3]
[1727370204286,15.3,157.25,157.15,15.3]
[1727370204478,3.1801,157.2,157.17,3.1806]
[1727370205084,3.1803,157.19,157.17,3.1806]
[1727370205281,15.3,157.25,157.17,3.1806]
[1727370205885,3.1802,157.2,157.17,3.1806]
[1727370206685,3.1807,157.18,157.15,15.3]
[1727370206884,15.3,157.23,157.15,15.3]
[1727370207085,15.3,157.23,157.17,3.1807]
[1727370207785,3.1803,157.2,157.17,3.1807]
[1727370207985,15.3,157.23,157.17,3.1807]
[1727370208190,3.1804,157.19,157.16,3.1809]
[1727370208587,15.3,157.19,157.12,5.74486168]
[1727370208889,15.3,157.17,157.08,2.7001]
[1727370209078,15.3,157.17,157.09,3.16521517]
[1727370209282,3.1815,157.14,157.11,3.1818]
[1727370209882,15.3,157.19,157.09,18.46521517]
[1727370210194,15.3,157.19,157.11,15.3]
[1727370210484,15.3,157.23,157.13,15.3]
[1727370210784,18.53744113,157.25,157.15,15.3]
[1727370210986,3.18,157.21,157.18,3.1804]
[1727370211185,15.3,157.27,157.17,15.3]
[1727370211386,0.96631729,157.26,157.18,3.13180668]
[1727370211588,3.1795,157.24,157.18,3.13180668]
[1727370212183,3.1795,157.24,157.19,15.3]
[1727370212589,3.1795,157.24,157.21,3.1797]
[1727370213288,15.3,157.27,157.2,3.1801]
[1727370214377,15.3,157.25,157.17,1.2956]
[1727370214989,15.3,157.25,157.18,3.1804]
[1727370215186,70.40722911,157.28,157.18,3.24540576]
[1727370215384,15.3,157.27,157.18,3.24540576]
[1727370215892,3.1795,157.24,157.18,3.24540576]
[1727370216283,3.1796,157.23,157.2,3.1801]
[1727370216788,3.1796,157.23,157.18,3.24540576]
[1727370217289,3.1794,157.24,157.17,16.5956]
[1727370217890,3.1794,157.24,157.21,3.1798]
[1727370218286,3.1794,157.24,157.17,19.7439903]
[1727370218994,3.1794,157.24,157.21,3.1798]
[1727370219682,3.1797,157.23,157.2,3.18]
[1727370219991,3.1805,157.19,157.1,76.34]
[1727370220184,15.3,157.21,157.13,15.3]
[1727370220384,15.3,157.23,157.13,15.3]
[1727370220788,3.1801,157.21,157.13,15.3]
[1727370221091,15.3,157.24,157.15,15.3]
[1727370221391,15.3,157.24,157.17,15.3]
[1727370221585,3.1796,157.23,157.21,3.1799]
[1727370222092,3.1796,157.23,157.2,3.18]
[1727370222794,3.1798,157.22,157.19,3.1802]
[1727370223092,3.1798,157.22,157.15,15.3]
[1727370223686,3.1796,157.23,157.2,3.18]
[1727370224290,3.1796,157.23,157.17,15.3]
[1727370224492,3.1795,157.24,157.21,3.1798]
[1727370225791,3.1796,157.23,157.21,3.1798]
[1727370226390,3.1794,157.24,157.21,3.1798]
[1727370226589,3.1794,157.24,157.22,3.1797]
[1727370227793,3.23225707,157.29,157.19,15.3]
[1727370227794,15.3,157.29,157.19,15.3]
[1727370227994,15.3,157.29,157.2,16.6299]
[1727370228495,3.1788,157.27,157.2,16.6299]
[1727370229294,3.1787,157.28,157.2,16.6299]
[1727370229686,18.45379772,157.31,157.26,3.1789]
[1727370229891,3.1785,157.28,157.26,3.1789]
[1727370230195,15.3,157.31,157.22,15.3]
[1727370230392,3.1784,157.29,157.22,15.3]
[1727370230992,3.25367593,157.34,157.22,15.3]
[1727370231189,15.3,157.33,157.22,15.3]
[1727370231594,3.1783,157.3,157.27,3.1787]
[1727370232195,70.37915139,157.38,157.2,1.3299]
[1727370232196,15.3,157.35,157.24,15.3]
[1727370232396,70.37915139,157.38,157.28,15.3]
[1727370232592,70.37915139,157.38,157.29,4.58274374]
[1727370232797,70.37915139,157.38,157.32,3.1775]
[1727370233000,70.37915139,157.38,157.29,4.58274374]
[1727370233199,70.37915139,157.38,157.33,3.1773]
[1727370233395,70.37915139,157.38,157.29,15.3]
[1727370233595,15.3,157.41,157.32,15.3]
[1727370233798,312.07519773,157.53,157.33,1.3435]
[1727370233999,15.3,157.47,157.37,15.3]
[1727370234201,224.0,157.53,157.37,15.3]
[1727370234396,3.175,157.44,157.39,3.1759]
[1727370234594,15.3,157.45,157.37,3.20240991]
[1727370234795,15.3,157.43,157.34,18.52020108]
[1727370235100,3.1754,157.42,157.36,3.1765]
[1727370235296,224.0,157.53,157.38,15.3]
[1727370235503,224.0,157.53,157.33,2.6659]
[1727370235504,15.3,157.46,157.36,15.3]
[1727370235802,15.3,157.46,157.33,2.6659]
[1727370235803,15.3,157.42,157.33,21.14765945]
[1727370236004,15.3,157.42,157.33,17.9659]
[1727370236208,98.57905147,157.54,157.34,3.13601074]
[1727370236405,15.3,157.42,157.34,3.13601074]
[1727370236996,98.57905147,157.54,157.35,15.3]
[1727370237199,0.96704253,157.53,157.37,15.3]
[1727370237404,15.3,157.48,157.39,15.3]
[1727370237599,15.3,157.48,157.4,1.2867]
[1727370238107,3.1746,157.46,157.4,1.2867]
[1727370238604,15.3,157.46,157.4,1.2867]
[1727370238796,3.1748,157.45,157.4,1.2867]
[1727370238996,15.3,157.47,157.4,1.2867]
[1727370239794,18.4746,157.47,157.4,4.4624]
[1727370240392,15.3,157.46,157.4,1.2867]
[1727370240607,15.3,157.46,157.38,1.2839]
[1727370240995,3.1748,157.45,157.38,1.2839]
[1727370241604,3.16905147,157.54,157.41,3.1756]
[1727370241799,19.09,157.58,157.41,3.1756]
[1727370241800,15.3,157.49,157.41,3.1756]
[1727370242004,0.96747804,157.48,157.41,15.3]
[1727370242200,15.3,157.52,157.41,15.3]
[1727370242406,0.96731299,157.51,157.42,1.3503]
[1727370242602,0.96731299,157.51,157.42,4.49806844]
[1727370242803,0.96731299,157.51,157.44,15.3]
[1727370243200,15.3,157.54,157.44,15.3]
[1727370243405,0.96707966,157.53,157.44,15.3]
[1727370243605,3.1734,157.52,157.46,3.1744]
[1727370244004,3.1734,157.52,157.44,15.3]
[1727370244209,70.41564352,157.63,157.48,15.3]
[1727370244509,15.3,157.59,157.5,15.3]
[1727370244704,3.1727,157.56,157.48,15.3]
[1727370244905,3.1727,157.56,157.49,1.386]
[1727370245105,3.1727,157.56,157.51,3.1736]
[1727370246199,70.41564352,157.63,157.55,15.3]
[1727370246404,0.96653128,157.62,157.55,15.3]
[1727370246802,3.1716,157.61,157.56,3.1725]
[1727370247509,70.41564352,157.63,157.55,15.3]
[1727370248013,3.1713,157.62,157.57,3.1723]
[1727370248505,70.41564352,157.63,157.58,3.172]
[1727370248712,15.3,157.68,157.58,15.3]
[1727370249314,3.1637272,157.71,157.53,3.23221882]
[1727370249610,15.3,157.67,157.57,15.3]
[1727370249808,15.3,157.67,157.59,3.1718]
[1727370249809,3.1709,157.65,157.59,3.1718]
[1727370250009,15.3,157.67,157.58,2.5853]
[1727370250412,19.09,157.76,157.59,15.3]
[1727370250607,0.96622568,157.75,157.63,15.3]
[1727370250807,3.1699,157.69,157.64,3.1709]
[1727370251001,15.3,157.73,157.63,15.3]
[1727370251221,3.1685,157.77,157.67,15.3]
[1727370251402,3.1685,157.77,157.59,4.54891155]
[1727370251403,3.23348897,157.81,157.71,15.3]
[1727370251607,15.3,157.8,157.71,3.5424308]
[1727370252314,19.09,157.85,157.69,24.36]
[1727370252505,19.09,157.85,157.69,25.6984]
[1727370252506,24.36,157.83,157.69,25.6984]
[1727370252712,0.96532015,157.84,157.72,24.36]
[1727370252911,24.36,157.83,157.72,24.36]
[1727370253111,24.36,157.83,157.69,25.6984]
[1727370253314,24.36,157.83,157.72,24.36]
[1727370253714,4.08509985,157.84,157.69,1.3384]
[1727370253715,24.36,157.79,157.69,1.3384]
[1727370254315,24.36,157.81,157.69,1.3384]
[1727370254517,24.36,157.83,157.69,1.3384]
[1727370254714,24.36,157.83,157.71,24.36]
[1727370255413,3.12093269,157.86,157.71,24.36]
[1727370255414,27.48093269,157.86,157.71,24.36]
[1727370255615,24.36,157.86,157.74,24.36]
[1727370256015,94.66118016,157.88,157.74,24.36]
[1727370256215,97.78940253,157.88,157.74,24.36]
[1727370256615,3.1673,157.83,157.74,27.5289]
[1727370256816,97.78940253,157.88,157.74,3.1689]
[1727370257114,97.78940253,157.88,157.72,24.36]
[1727370257115,3.1675,157.82,157.73,3.1691]
[1727370257314,24.36,157.84,157.73,3.1691]
[1727370257520,24.36,157.84,157.72,24.36]
[1727370257715,97.78940253,157.88,157.72,24.36]
[1727370257716,24.36,157.87,157.72,24.36]
[1727370258110,24.36,157.84,157.72,24.36]
[1727370259016,97.78940253,157.88,157.76,24.36]
[1727370259017,70.30118016,157.88,157.76,24.36]
[1727370259211,70.30118016,157.88,157.77,1.2809]
[1727370259422,227.17498019,157.96,157.77,2.608]
[1727370259621,24.36,157.89,157.77,5.85287384]
[1727370259822,3.1669,157.85,157.77,9.02097384]
[1727370260018,3.1669,157.85,157.77,10.37307384]
[1727370260219,24.36,157.89,157.77,7.20497384]
[1727370260821,3.1672,157.83,157.77,3.9601]
[1727370261023,24.36,157.86,157.77,3.9601]
[1727370261720,3.1674,157.82,157.77,3.9601]
[1727370262117,24.36,157.86,157.77,3.9601]
[1727370262619,24.36,157.86,157.72,76.1]
[1727370262620,24.36,157.84,157.72,76.1]
[1727370263223,24.36,157.81,157.72,76.1]
[1727370263527,24.36,157.81,157.71,1.3378]
[1727370263929,24.36,157.84,157.71,1.3378]
[1727370264320,24.36,157.82,157.71,1.3378]
[1727370264622,24.36,157.79,157.71,1.3378]
[1727370264823,24.36,157.79,157.69,2.7313]
[1727370265215,24.36,157.82,157.69,2.7313]
[1727370265727,3.1684,157.77,157.71,3.1694]
[1727370265927,24.36,157.79,157.69,2.7313]
[1727370266227,3.1693,157.73,157.69,2.7313]
[1727370266418,24.36,157.77,157.64,1.3743]
[1727370266723,19.09,157.86,157.64,1.3743]
[1727370266724,24.36,157.74,157.64,1.3743]
[1727370267030,24.36,157.74,157.61,24.36]
[1727370267327,24.36,157.74,157.61,25.7343]
[1727370267520,3.1699,157.7,157.61,25.7343]
[1727370267828,24.36,157.74,157.61,25.7343]
[1727370268424,3.11558159,157.76,157.61,1.3743]
[1727370268425,24.36,157.71,157.61,1.3743]
[1727370268732,24.36,157.71,157.6,2.6471]
[1727370269021,3.1709,157.65,157.6,2.6471]
[1727370269219,24.36,157.69,157.6,2.6471]
[1727370269419,24.36,157.69,157.56,24.36]
[1727370269617,3.171,157.64,157.59,3.1719]
[1727370269819,24.36,157.69,157.57,2.6085]
[1727370270021,3.1713,157.63,157.58,3.1721]
[1727370270419,24.36,157.69,157.57,2.6085]
[1727370270624,3.1709,157.65,157.59,3.1718]
[1727370270823,3.1709,157.65,157.58,6.9066341]
[1727370271518,24.36,157.73,157.6,3.1716]
[1727370271824,0.96600803,157.72,157.58,6.9066341]
[1727370272026,0.96600803,157.72,157.59,3.1718]
[1727370272027,3.1709,157.65,157.59,3.1718]
[1727370272418,3.1709,157.65,157.6,3.1717]
[1727370272622,24.36,157.73,157.58,6.9066341]
[1727370272927,24.36,157.69,157.58,3.1721]
[1727370273621,19.09,157.73,157.53,24.36]
[1727370273828,24.36,157.65,157.53,24.36]
[1727370274027,27.49659364,157.65,157.53,24.36]
[1727370274929,3.13659364,157.65,157.51,24.36]
[1727370275127,24.36,157.62,157.51,24.36]
[1727370275429,3.1724,157.57,157.53,3.173]
[1727370275627,24.36,157.62,157.51,24.36]
[1727370276631,6.3391,157.72,157.55,24.36]
[1727370276826,24.36,157.69,157.55,24.36]
[1727370277031,3.1711,157.64,157.59,3.1718]
[1727370277432,24.36,157.69,157.59,3.1718]
[1727370277633,6.3391,157.72,157.58,24.36]
[1727370277929,24.36,157.68,157.57,3.1722]
[1727370278130,3.21450006,157.67,157.55,24.36]
[1727370278437,3.1719,157.6,157.56,3.1725]
[1727370278631,24.36,157.66,157.55,24.36]
[1727370278835,6.3391,157.72,157.55,24.36]
[1727370279140,24.36,157.71,157.58,24.36]
[1727370279334,24.36,157.69,157.57,2.5848]
[1727370279535,24.36,157.62,157.49,1.3588]
[1727370279732,24.36,157.65,157.53,24.36]
[1727370280035,3.22447029,157.67,157.56,3.1724]
[1727370280237,3.22447029,157.67,157.53,24.36]
[1727370280429,3.172,157.59,157.55,3.1727]
[1727370280639,24.36,157.65,157.51,24.36]
[1727370281035,19.09,157.65,157.5,2.5848]
[1727370281237,24.36,157.62,157.5,2.5848]
[1727370281440,24.36,157.62,157.53,3.173]
[1727370281834,24.36,157.62,157.5,2.5848]
[1727370282039,24.36,157.6,157.5,2.5848]
[1727370282443,3.11057962,157.68,157.51,24.36]
[1727370282633,24.36,157.66,157.52,24.36]
[1727370282833,27.55978893,157.66,157.52,24.36]
[1727370283731,3.172,157.59,157.52,24.36]
[1727370283936,27.55978893,157.66,157.52,24.36]
[1727370284138,3.1716,157.61,157.56,3.1725]
[1727370284337,27.55978893,157.66,157.56,3.1725]
[1727370285740,27.55978893,157.66,157.56,3.1723]
[1727370285938,3.1717,157.61,157.52,24.36]
[1727370286137,24.36,157.63,157.5,26.9448]
[1727370286330,24.36,157.64,157.55,3.1726]
[1727370286738,24.36,157.64,157.5,26.9448]
[1727370286936,24.36,157.64,157.51,1.16624165]
[1727370287242,24.36,157.64,157.55,3.1726]
[1727370287440,3.1719,157.6,157.55,3.1726]
[1727370288339,24.36,157.64,157.5,26.9448]
[1727370288546,24.36,157.64,157.53,24.36]
[1727370288745,24.36,157.64,157.56,3.1724]
[1727370289046,24.36,157.64,157.53,24.36]